fUST/lending_fUST_20250611
["ID","MTS","AMOUNT","RATE_DAILY","PERIOD"]
[365296514,1749585045323,-460.0,0.00022191,4]
[365296515,1749585045332,-460.0,0.00022191,4]
[365296516,1749585045342,-360.0,0.00022191,4]
[365296518,1749585045351,-360.0,0.00022191,4]
[365296519,1749585045360,-220.94,0.00022191,4]
[365296520,1749585045370,-330.0,0.00022191,4]
[365296522,1749585045380,-460.0,0.00022191,4]
[365296523,1749585045389,-460.0,0.00022191,4]
[365296524,1749585045399,-689.99,0.00022191,4]
[365296525,1749585045409,-360.0,0.00022191,4]
[365296526,1749585045420,-460.0,0.00022191,4]
[365296527,1749585045431,-460.0,0.00022191,4]
[365296528,1749585045441,-460.0,0.00022191,4]
[365296529,1749585045451,-460.0,0.00022191,4]
[365296530,1749585045461,-460.0,0.00022191,4]
[365296531,1749585045471,-460.0,0.00022191,4]
[365296532,1749585045481,-460.0,0.00022191,4]
[365296533,1749585045490,-460.0,0.00022191,4]
[365296534,1749585045500,-460.0,0.00022191,4]
[365296535,1749585045510,-460.0,0.00022191,4]
[365296536,1749585045520,-460.0,0.00022191,4]
[365296537,1749585045530,-460.0,0.00022191,4]
[365296538,1749585045541,-250.80912117,0.00022191,4]
[365296539,1749585045646,-460.0,0.00022191,4]
[365296540,1749585045656,-354.85338045,0.00022191,4]
[365296541,1749585045665,-460.0,0.00022191,4]
[365296542,1749585045676,-994.74,0.00022191,4]
[365296543,1749585045685,-460.0,0.00022191,4]
[365296544,1749585045697,-460.0,0.00022191,4]
[365296545,1749585045706,-320.21169488,0.00022191,4]
[365296546,1749585045715,-460.0,0.00022191,4]
[365296547,1749585045725,-460.0,0.00022191,4]
[365296548,1749585045735,-460.0,0.00022191,4]
[365296549,1749585045744,-1460.01,0.00022191,4]
[365296550,1749585045754,-460.0,0.00022191,4]
[365296551,1749585045763,-355.8869076,0.00022191,4]
[365296552,1749585045773,-460.0,0.00022191,4]
[365296553,1749585045784,-460.0,0.00022191,4]
[365296554,1749585045794,-460.0,0.00022191,4]
[365296555,1749585045803,-460.0,0.00022191,4]
[365296556,1749585045814,-460.0,0.00022191,4]
[365296557,1749585045824,-256.91,0.00022191,4]
[365296558,1749585045834,-460.0,0.00022191,4]
[365296559,1749585045844,-460.0,0.00022191,2]
[365296560,1749585045853,-460.0,0.00022191,4]
[365296561,1749585045863,-300.0,0.00022191,4]
[365296562,1749585045872,-1233.18,0.00022191,4]
[365296563,1749585045882,-948.83,0.00022191,4]
[365296564,1749585045892,-460.0,0.00022191,4]
[365296565,1749585045902,-1062.66,0.00022191,4]
[365296566,1749585045912,-781.02,0.00022191,4]
[365296567,1749585045923,-460.0,0.00022191,4]
[365296568,1749585045932,-460.0,0.00022191,4]
[365296569,1749585045943,-467.08,0.00022191,4]
[365296570,1749585045952,-460.0,0.00022191,4]
[365296571,1749585045961,-602.94,0.00022191,4]
[365296572,1749585045971,-460.0,0.00022191,4]
[365296573,1749585045981,-1005.96,0.00022191,4]
[365296574,1749585045991,-460.0,0.00022191,4]
[365296575,1749585046002,-460.0,0.00022191,4]
[365296576,1749585046011,-682.87,0.00022191,4]
[365296577,1749585046021,-460.0,0.00022191,4]
[365296578,1749585046033,-420.0,0.00022191,4]
[365296579,1749585046043,-460.0,0.00022191,4]
[365296580,1749585046053,-460.0,0.00022191,4]
[365296581,1749585046063,-848.93819056,0.0002221,6]
[365296582,1749585046073,-1000.0,0.00022221,2]
[365296583,1749585046083,-500.0,0.00022221,2]
[365296584,1749585046093,-504.22249463,0.00022221,2]
[365296585,1749585046103,-731.77,0.00022244,3]
[365296586,1749585046112,-848.93819056,0.00022314,7]
[365296587,1749585046121,-731.77,0.00022344,7]
[365296588,1749585046131,-848.93819056,0.00022417,7]
[365296589,1749585046141,-731.77,0.00022444,3]
[365296590,1749585046151,-290.0,0.00022465,4]
[365296591,1749585046161,-460.0,0.00022465,4]
[365296592,1749585046170,-360.0,0.00022465,4]
[365296593,1749585046180,-340.0,0.00022465,4]
[365296594,1749585046193,-460.0,0.00022465,4]
[365296595,1749585046203,-689.99,0.00022465,4]
[365296596,1749585046212,-280.0,0.00022465,4]
[365296597,1749585046222,-570.0,0.00022465,4]
[365296598,1749585046232,-466.37957184,0.00022465,4]
[365296599,1749585046242,-340.0,0.00022465,4]
[365296600,1749585046251,-460.0,0.00022465,4]
[365296601,1749585046263,-460.0,0.00022465,4]
[365296602,1749585046273,-460.0,0.00022465,4]
[365296605,1749585046283,-340.0,0.00022465,4]
[365296606,1749585046292,-460.0,0.00022465,4]
[365296607,1749585046302,-340.0,0.00022465,4]
[365296608,1749585046311,-460.0,0.00022465,4]
[365296609,1749585046321,-460.0,0.00022465,4]
[365296610,1749585046331,-460.0,0.00022465,4]
[365296611,1749585046341,-275.8,0.00022465,4]
[365296612,1749585046351,-994.74,0.00022465,4]
[365296613,1749585046360,-460.0,0.00022465,4]
[365296614,1749585046370,-482.77,0.00022465,4]
[365296615,1749585046379,-460.0,0.00022465,4]
[365296616,1749585046390,-460.0,0.00022465,4]
[365296617,1749585046399,-460.0,0.00022465,4]
[365296618,1749585046409,-1460.01,0.00022465,4]
[365296619,1749585046419,-460.0,0.00022465,4]
[365296620,1749585046428,-460.0,0.00022465,4]
[365296621,1749585046439,-460.0,0.00022465,4]
[365296622,1749585046450,-354.8189457,0.00022465,4]
[365296623,1749585046461,-466.06,0.00022465,4]
[365296624,1749585046471,-460.0,0.00022465,4]
[365296625,1749585046481,-460.0,0.00022465,4]
[365296626,1749585046491,-340.0,0.00022465,2]
[365296627,1749585046500,-460.0,0.00022465,4]
[365296628,1749585046510,-1233.18,0.00022465,4]
[365296629,1749585046519,-948.83,0.00022465,4]
[365296630,1749585046529,-340.0,0.00022465,4]
[365296631,1749585046539,-1062.66,0.00022465,4]
[365296632,1749585046549,-781.02,0.00022465,4]
[365296633,1749585046559,-460.0,0.00022465,4]
[365296634,1749585046570,-460.0,0.00022465,4]
[365296635,1749585046581,-460.0,0.00022465,4]
[365296636,1749585046591,-602.94,0.00022465,4]
[365296637,1749585046601,-360.0,0.00022465,4]
[365296638,1749585046612,-1005.96,0.00022465,4]
[365296639,1749585046622,-460.0,0.00022465,4]
[365296640,1749585046633,-452.02,0.00022465,4]
[365296641,1749585046644,-682.87,0.00022465,4]
[365296642,1749585046654,-460.0,0.00022465,4]
[365296643,1749585046663,-460.0,0.00022465,4]
[365296644,1749585046673,-460.0,0.00022465,4]
[365296645,1749585046683,-613.4854085,0.000225,2]
[365296646,1749585046698,-848.93819056,0.00022521,7]
[365296647,1749585046708,-731.77,0.00022544,2]
[365296648,1749585046717,-848.93819056,0.00022624,7]
[365296649,1749585046727,-731.77,0.00022644,6]
[365296650,1749585046737,-596.32,0.0002271,3]
[365296651,1749585046747,-1192.62,0.00022719,3]
[365296652,1749585046757,-848.93819056,0.00022728,7]
[365296653,1749585046767,-2385.24,0.00022729,3]
[365296654,1749585046777,-460.0,0.00022739,4]
[365296655,1749585046786,-340.0,0.00022739,4]
[365296656,1749585046795,-689.99,0.00022739,4]
[365296657,1749585046805,-460.0,0.00022739,4]
[365296658,1749585046814,-460.0,0.00022739,4]
[365296659,1749585046823,-460.0,0.00022739,4]
[365296660,1749585046832,-460.0,0.00022739,4]
[365296661,1749585046841,-460.0,0.00022739,4]
[365296662,1749585046851,-460.0,0.00022739,4]
[365296663,1749585046861,-275.02,0.00022739,4]
[365296664,1749585046871,-994.74,0.00022739,4]
[365296665,1749585046880,-460.0,0.00022739,4]
[365296666,1749585046890,-460.0,0.00022739,4]
[365296667,1749585046899,-460.0,0.00022739,4]
[365296668,1749585046908,-460.0,0.00022739,4]
[365296669,1749585046919,-1460.01,0.00022739,4]
[365296670,1749585046928,-460.0,0.00022739,4]
[365296671,1749585046941,-460.0,0.00022739,4]
[365296672,1749585046951,-460.0,0.00022739,4]
[365296673,1749585046960,-460.0,0.00022739,4]
[365296674,1749585046970,-460.0,0.00022739,4]
[365296675,1749585046979,-340.0,0.00022739,4]
[365296676,1749585046990,-1233.18,0.00022739,4]
[365296677,1749585047001,-948.83,0.00022739,4]
[365296678,1749585047010,-1062.66,0.00022739,4]
[365296679,1749585047019,-781.02,0.00022739,4]
[365296680,1749585047030,-460.0,0.00022739,4]
[365296681,1749585047039,-455.36,0.00022739,4]
[365296682,1749585047049,-460.0,0.00022739,4]
[365296683,1749585047058,-602.94,0.00022739,4]
[365296684,1749585047068,-1005.96,0.00022739,4]
[365296685,1749585047078,-460.0,0.00022739,4]
[365296686,1749585047088,-682.87,0.00022739,4]
[365296687,1749585047097,-460.0,0.00022739,4]
[365296688,1749585047107,-460.0,0.00022739,4]
[365296689,1749585047117,-550.76,0.00022739,4]
[365296690,1749585047126,-731.77,0.00022744,3]
[365296691,1749585047135,-397.0,0.00022768,2]
[365296692,1749585047144,-1500.0,0.00022768,2]
[365296693,1749585047154,-842.5625,0.00022799,2]
[365296694,1749585047164,-424.12530924,0.00022799,2]
[365296695,1749585047173,-213.1263252,0.00022799,2]
[365296696,1749585047183,-834.9046531,0.00022799,2]
[365296697,1749585047197,-160.0,0.00022799,2]
[365296698,1749585047207,-160.0,0.00022799,2]
[365296699,1749585047217,-229.6792923,0.00022799,2]
[365296700,1749585047226,-160.0,0.00022799,2]
[365296701,1749585047236,-848.93819056,0.00022831,8]
[365296702,1749585047245,-731.77,0.00022844,7]
[365296703,1749585047255,-532.31229968,0.00022913,2]
[365296704,1749585047265,-848.93819056,0.00022934,8]
[365296705,1749585047275,-731.77,0.00022944,4]
[365296706,1749585047285,-460.0,0.00023013,4]
[365296707,1749585047294,-689.99,0.00023013,4]
[365296708,1749585047304,-460.0,0.00023013,4]
[365296709,1749585047314,-460.0,0.00023013,4]
[365296710,1749585047324,-460.0,0.00023013,4]
[365296711,1749585047334,-300.0,0.00023013,4]
[365296712,1749585047343,-220.74,0.00023013,4]
[365296713,1749585047352,-460.0,0.00023013,4]
[365296714,1749585047362,-994.74,0.00023013,4]
[365296715,1749585047372,-477.32,0.00023013,4]
[365296716,1749585047382,-460.0,0.00023013,4]
[365296717,1749585047391,-460.0,0.00023013,4]
[365296718,1749585047400,-460.0,0.00023013,4]
[365296719,1749585047409,-1460.01,0.00023013,4]
[365296720,1749585047418,-460.0,0.00023013,4]
[365296721,1749585047428,-460.0,0.00023013,4]
[365296722,1749585047440,-460.0,0.00023013,4]
[365296723,1749585047449,-460.0,0.00023013,4]
[365296724,1749585047459,-472.9,0.00023013,4]
[365296725,1749585047468,-1233.18,0.00023013,4]
[365296726,1749585047477,-948.83,0.00023013,4]
[365296727,1749585047487,-1062.66,0.00023013,4]
[365296728,1749585047497,-781.02,0.00023013,4]
[365296729,1749585047510,-460.0,0.00023013,4]
[365296730,1749585047519,-460.0,0.00023013,4]
[365296731,1749585047528,-602.94,0.00023013,4]
[365296732,1749585047539,-1005.96,0.00023013,4]
[365296733,1749585047548,-460.0,0.00023013,4]
[365296734,1749585047557,-682.87,0.00023013,4]
[365296735,1749585047567,-460.0,0.00023013,4]
[365296736,1749585047576,-460.0,0.00023013,4]
[365296737,1749585047585,-269.61606172,0.00023014,3]
[365296738,1749585047595,-848.93819056,0.00023038,8]
[365296739,1749585047604,-731.77,0.00023044,3]
[365296740,1749585047613,-424.12530924,0.00023044,3]
[365296741,1749585047623,-213.1263252,0.00023044,3]
[365296742,1749585047632,-842.5625,0.00023044,3]
[365296743,1749585047641,-848.93819056,0.00023141,8]
[365296744,1749585047651,-731.77,0.00023144,6]
[365296745,1749585047661,-1688.0,0.00023194,2]
[365296746,1749585047670,-5000.0,0.00023194,2]
[365296747,1749585047679,-151.0,0.00023194,2]
[365296748,1749585047689,-2500.0,0.00023194,2]
[365296749,1749585047699,-2500.0,0.00023194,2]
[365296750,1749585047708,-2500.0,0.00023194,2]
[365296751,1749585047717,-2500.0,0.00023194,2]
[365296752,1749585047727,-801.44693128,0.00023194,2]
[365296753,1749585047736,-207.4,0.00023194,2]
[365296754,1749585047746,-498.59,0.000232,7]
[365296755,1749585047755,-500.0,0.00023241,2]
[365296756,1749585047764,-731.77,0.00023244,6]
[365296757,1749585047775,-848.93819056,0.00023245,8]
[365296758,1749585047784,-1750.456,0.00023249,2]
[365296759,1749585047793,-460.0,0.00023287,4]
[365296760,1749585047803,-689.99,0.00023287,4]
[365296761,1749585047812,-180.0,0.00023287,4]
[365296762,1749585047905,-460.0,0.00023287,4]
[365296763,1749585047915,-280.0,0.00023287,4]
[365296764,1749585047925,-460.0,0.00023287,4]
[365296765,1749585047934,-994.74,0.00023287,4]
[365296766,1749585047945,-460.0,0.00023287,4]
[365296767,1749585047955,-460.0,0.00023287,4]
[365296768,1749585047964,-443.04,0.00023287,4]
[365296769,1749585047973,-1460.01,0.00023287,4]
[365296770,1749585047982,-385.17,0.00023287,4]
[365296771,1749585047991,-460.0,0.00023287,4]
[365296772,1749585048000,-460.0,0.00023287,4]
[365296773,1749585048010,-460.0,0.00023287,4]
[365296774,1749585048019,-1233.18,0.00023287,4]
[365296775,1749585048028,-948.83,0.00023287,4]
[365296776,1749585048037,-1062.66,0.00023287,4]
[365296777,1749585048047,-781.02,0.00023287,4]
[365296778,1749585048057,-460.0,0.00023287,4]
[365296779,1749585048067,-460.0,0.00023287,4]
[365296780,1749585048076,-602.94,0.00023287,4]
[365296781,1749585048086,-1005.96,0.00023287,4]
[365296782,1749585048096,-460.0,0.00023287,4]
[365296783,1749585048106,-682.87,0.00023287,4]
[365296784,1749585048116,-460.0,0.00023287,4]
[365296785,1749585048125,-460.0,0.00023287,4]
[365296786,1749585048136,-9973.91679027,0.00023301,2]
[365296787,1749585048145,-219.96597335,0.00023304,2]
[365296788,1749585048154,-1026.26156429,0.00023316,2]
[365296789,1749585048165,-731.77,0.00023344,3]
[365296790,1749585048175,-848.93819056,0.00023348,9]
[365296791,1749585048185,-731.77,0.00023444,5]
[365296792,1749585048199,-848.93819056,0.00023452,9]
[365296793,1749585048209,-731.77,0.00023544,5]
[365296794,1749585048219,-500.0,0.0002355,2]
[365296795,1749585048231,-848.93819056,0.00023555,9]
[365296796,1749585048241,-325.24,0.00023561,4]
[365296797,1749585048251,-689.99,0.00023561,4]
[365296798,1749585048261,-300.0,0.00023561,4]
[365296799,1749585048273,-460.0,0.00023561,4]
[365296800,1749585048284,-994.74,0.00023561,4]
[365296801,1749585048294,-460.0,0.00023561,4]
[365296802,1749585048305,-218.73961143,0.00023561,4]
[365296803,1749585048315,-1460.01,0.00023561,4]
[365296804,1749585048325,-340.0,0.00023561,4]
[365296805,1749585048335,-460.0,0.00023561,4]
[365296806,1749585048345,-460.0,0.00023561,4]
[365296807,1749585048355,-1233.18,0.00023561,4]
[365296808,1749585048365,-948.83,0.00023561,4]
[365296809,1749585048376,-1062.66,0.00023561,4]
[365296810,1749585048386,-781.02,0.00023561,4]
[365296811,1749585048397,-460.0,0.00023561,4]
[365296812,1749585048407,-226.739208,0.00023561,4]
[365296813,1749585048417,-602.94,0.00023561,4]
[365296814,1749585048427,-1005.96,0.00023561,4]
[365296815,1749585048436,-460.0,0.00023561,4]
[365296816,1749585048447,-682.87,0.00023561,4]
[365296817,1749585048457,-460.0,0.00023561,4]
[365296818,1749585048467,-460.0,0.00023561,4]
[365296819,1749585048476,-151.0,0.000236,5]
[365296820,1749585048485,-151.0,0.00023616,4]
[365296821,1749585048495,-151.0,0.00023616,4]
[365296822,1749585048505,-151.0,0.00023616,4]
[365296823,1749585048514,-500.0,0.00023616,4]
[365296824,1749585048524,-257.24219455,0.00023616,2]
[365296825,1749585048533,-500.0,0.00023616,4]
[365296826,1749585048543,-151.0,0.00023616,4]
[365296827,1749585048552,-151.0,0.00023616,4]
[365296828,1749585048561,-500.0,0.00023616,4]
[365296829,1749585048571,-182.34471108,0.00023616,4]
[365296830,1749585048581,-287.63485949,0.00023616,4]
[365296831,1749585048591,-199.73397981,0.00023616,4]
[365296832,1749585048600,-198.0,0.00023616,4]
[365296833,1749585048610,-253.29229518,0.00023616,4]
[365296834,1749585048619,-500.0,0.00023616,4]
[365296835,1749585048629,-500.0,0.00023616,4]
[365296836,1749585048638,-152.63117165,0.00023616,4]
[365296837,1749585048647,-500.0,0.00023616,4]
[365296838,1749585048657,-201.05656486,0.00023616,4]
[365296839,1749585048667,-500.0,0.00023616,4]
[365296840,1749585048676,-151.0,0.00023616,4]
[365296841,1749585048686,-151.0,0.00023616,4]
[365296842,1749585048698,-151.0,0.00023616,4]
[365296843,1749585048707,-151.0,0.00023616,4]
[365296844,1749585048716,-1844.59,0.00023633,2]
[365296845,1749585048726,-151.0,0.00023643,4]
[365296846,1749585048737,-500.0,0.00023643,4]
[365296847,1749585048746,-500.0,0.00023643,4]
[365296848,1749585048756,-151.0,0.00023643,4]
[365296849,1749585048766,-151.0,0.00023643,4]
[365296850,1749585048776,-500.0,0.00023643,4]
[365296851,1749585048785,-500.0,0.00023643,4]
[365296852,1749585048794,-500.0,0.00023643,4]
[365296853,1749585048805,-500.0,0.00023643,4]
[365296854,1749585048815,-500.0,0.00023643,4]
[365296855,1749585048824,-151.0,0.00023643,4]
[365296856,1749585048833,-731.77,0.00023644,4]
[365296857,1749585048843,-848.93819056,0.00023659,9]
[365296858,1749585048853,-500.0,0.00023671,4]
[365296859,1749585048862,-500.0,0.00023671,4]
[365296860,1749585048872,-500.0,0.00023671,4]
[365296861,1749585048881,-500.0,0.00023671,4]
[365296862,1749585048892,-500.0,0.00023671,4]
[365296863,1749585048903,-500.0,0.00023671,4]
[365296864,1749585048912,-500.0,0.00023671,4]
[365296865,1749585048923,-206.05423803,0.00023671,4]
[365296866,1749585048932,-500.0,0.00023673,2]
[365296867,1749585048943,-500.0,0.00023673,2]
[365296868,1749585048952,-500.0,0.00023673,2]
[365296869,1749585048962,-500.0,0.00023673,2]
[365296870,1749585048971,-500.0,0.00023673,2]
[365296871,1749585048981,-501.85277261,0.00023673,2]
[365296872,1749585048991,-484.15155869,0.00023673,2]
[365296873,1749585049000,-600.0,0.00023673,2]
[365296874,1749585049010,-500.0,0.00023673,2]
[365296875,1749585049019,-500.0,0.00023673,2]
[365296876,1749585049028,-500.0,0.00023673,2]
[365296877,1749585049038,-2712.57710408,0.00023679,2]
[365296878,1749585049048,-500.0,0.00023679,2]
[365296879,1749585049057,-2712.57710408,0.00023679,2]
[365296880,1749585049067,-2712.57710408,0.00023679,2]
[365296881,1749585049076,-2712.57710408,0.00023679,2]
[365296882,1749585049085,-500.0,0.00023679,2]
[365296883,1749585049095,-2712.57710408,0.00023679,2]
[365296884,1749585049104,-2712.57710408,0.00023679,2]
[365296885,1749585049114,-590.92978657,0.00023679,2]
[365296886,1749585049123,-2712.57710408,0.00023679,2]
[365296887,1749585049133,-2712.57710408,0.00023679,2]
[365296888,1749585049142,-500.0,0.00023679,2]
[365296889,1749585049152,-2712.57710408,0.00023679,2]
[365296890,1749585049161,-2712.57710408,0.00023679,2]
[365296891,1749585049170,-2712.57710408,0.00023679,2]
[365296892,1749585049180,-2712.57710408,0.00023679,2]
[365296893,1749585049193,-2712.57710408,0.00023679,2]
[365296894,1749585049203,-2712.57710408,0.00023679,2]
[365296895,1749585049213,-2712.57710408,0.00023679,2]
[365296896,1749585049223,-2712.57710408,0.00023679,2]
[365296897,1749585049233,-2712.57710408,0.00023679,2]
[365296898,1749585049244,-252.45466841,0.00023698,4]
[365296899,1749585049254,-500.0,0.00023698,4]
[365296900,1749585049263,-500.0,0.00023698,4]
[365296901,1749585049274,-500.0,0.00023698,4]
[365296902,1749585049283,-500.0,0.00023698,4]
[365296903,1749585049294,-500.0,0.00023698,4]
[365296904,1749585049304,-94174.72,0.000237,7]
[365296905,1749585049314,-500.0,0.00023726,4]
[365296906,1749585049324,-500.0,0.00023726,4]
[365296907,1749585049335,-500.0,0.00023726,4]
[365296908,1749585049345,-500.0,0.00023726,4]
[365296909,1749585049354,-500.0,0.00023726,4]
[365296910,1749585049366,-532.31229968,0.00023735,2]
[365296911,1749585049376,-5000.0,0.00023742,2]
[365296912,1749585049385,-731.77,0.00023744,4]
[365296913,1749585049395,-500.0,0.00023753,4]
[365296914,1749585049404,-500.0,0.00023753,4]
[365296915,1749585049414,-500.0,0.00023753,4]
[365296916,1749585049424,-500.0,0.00023753,4]
[365296917,1749585049433,-500.0,0.00023753,4]
[365296918,1749585049443,-848.93819056,0.00023762,9]
[365296919,1749585049452,-500.0,0.0002378,4]
[365296920,1749585049462,-500.0,0.0002378,4]
[365296921,1749585049471,-313.0783994,0.0002378,4]
[365296922,1749585049482,-500.0,0.0002378,4]
[365296923,1749585049492,-500.0,0.0002378,4]
[365296924,1749585049501,-155.260894,0.000238,7]
[365296925,1749585049511,-412.31268897,0.00023808,4]
[365296926,1749585049520,-500.0,0.00023808,4]
[365296927,1749585049530,-500.0,0.00023808,4]
[365296928,1749585049539,-500.0,0.00023808,4]
[365296929,1749585049549,-151.0,0.00023831,7]
[365296930,1749585049558,-689.99,0.00023835,4]
[365296931,1749585049568,-460.0,0.00023835,4]
[365296932,1749585049578,-994.74,0.00023835,4]
[365296933,1749585049587,-460.0,0.00023835,4]
[365296934,1749585049597,-1460.01,0.00023835,4]
[365296935,1749585049606,-460.0,0.00023835,4]
[365296936,1749585049615,-460.0,0.00023835,4]
[365296937,1749585049624,-1233.18,0.00023835,4]
[365296938,1749585049633,-948.83,0.00023835,4]
[365296939,1749585049642,-1062.66,0.00023835,4]
[365296940,1749585049651,-781.02,0.00023835,4]
[365296941,1749585049660,-460.0,0.00023835,4]
[365296942,1749585049669,-602.94,0.00023835,4]
[365296943,1749585049679,-1005.96,0.00023835,4]
[365296944,1749585049689,-460.0,0.00023835,4]
[365296945,1749585049699,-682.87,0.00023835,4]
[365296946,1749585049708,-460.0,0.00023835,4]
[365296947,1749585049717,-460.0,0.00023835,4]
[365296948,1749585049728,-500.0,0.00023835,4]
[365296949,1749585049737,-500.0,0.00023835,4]
[365296950,1749585049746,-500.0,0.00023835,4]
[365296951,1749585049755,-731.77,0.00023844,4]
[365296952,1749585049763,-500.0,0.00023863,4]
[365296953,1749585049773,-500.0,0.00023863,4]
[365296954,1749585049783,-500.0,0.00023863,4]
[365296955,1749585049792,-848.93819056,0.00023866,10]
[365296956,1749585049801,-500.0,0.0002389,4]
[365296957,1749585049810,-500.0,0.0002389,4]
[365296958,1749585049820,-500.0,0.0002389,4]
[365296959,1749585049828,-151.0,0.000239,7]
[365296960,1749585049837,-1043.33,0.000239,7]
[365296961,1749585049846,-352.93851996,0.000239,2]
[365296962,1749585049855,-397.0,0.00023905,2]
[365296963,1749585049865,-500.0,0.00023917,4]
[365296964,1749585049874,-500.0,0.00023917,4]
[365296965,1749585049883,-500.0,0.00023917,4]
[365296966,1749585049971,-364.9269501,0.00023918,2]
[365296967,1749585049981,-731.77,0.00023944,4]
[365296968,1749585049991,-162.0,0.00023945,4]
[365296969,1749585050000,-500.0,0.00023945,4]
[365296970,1749585050011,-500.0,0.00023945,4]
[365296971,1749585050020,-848.93819056,0.00023969,10]
[365296972,1749585050029,-500.0,0.00023972,4]
[365296973,1749585050039,-437.44390735,0.00023979,2]
[365296974,1749585050048,-500.0,0.00024,4]
[365296975,1749585050057,-424.12530924,0.00024,7]
[365296976,1749585050066,-500.0,0.00024027,4]
[365296977,1749585050076,-151.0,0.00024041,7]
[365296978,1749585050086,-731.77,0.00024044,3]
[365296979,1749585050095,-500.0,0.00024054,4]
[365296980,1749585050104,-158.7504224,0.00024055,2]
[365296981,1749585050113,-153.0,0.00024055,2]
[365296982,1749585050123,-158.7504224,0.00024055,2]
[365296983,1749585050132,-158.7504224,0.00024055,2]
[365296984,1749585050142,-153.0,0.00024055,2]
[365296985,1749585050151,-158.7504224,0.00024055,2]
[365296986,1749585050161,-153.0,0.00024055,2]
[365296987,1749585050171,-153.0,0.00024055,2]
[365296988,1749585050180,-153.0,0.00024055,2]
[365296989,1749585050191,-848.93819056,0.00024072,10]
[365296990,1749585050202,-531.27793115,0.00024082,4]
[365296991,1749585050211,-1323.04,0.000241,2]
[365296992,1749585050221,-689.99,0.00024109,4]
[365296993,1749585050231,-460.0,0.00024109,4]
[365296994,1749585050241,-994.74,0.00024109,4]
[365296995,1749585050251,-460.0,0.00024109,4]
[365296996,1749585050260,-1460.01,0.00024109,4]
[365296997,1749585050271,-460.0,0.00024109,4]
[365296998,1749585050281,-460.0,0.00024109,4]
[365296999,1749585050291,-1233.18,0.00024109,4]
[365297000,1749585050300,-948.83,0.00024109,4]
[365297001,1749585050310,-1062.66,0.00024109,4]
[365297002,1749585050319,-781.02,0.00024109,4]
[365297003,1749585050328,-460.0,0.00024109,4]
[365297004,1749585050338,-602.94,0.00024109,4]
[365297005,1749585050348,-1005.96,0.00024109,4]
[365297006,1749585050358,-460.0,0.00024109,4]
[365297007,1749585050367,-682.87,0.00024109,4]
[365297008,1749585050377,-362.19,0.00024109,4]
[365297009,1749585050387,-460.0,0.00024109,4]
[365297010,1749585050396,-731.77,0.00024144,7]
[365297011,1749585050405,-437.44390735,0.00024153,2]
[365297012,1749585050414,-848.93819056,0.00024176,10]
[365297013,1749585050423,-151.0,0.000242,5]
[365297015,1749585050432,-1000.0,0.00024221,2]
[365297017,1749585050442,-1001.61992717,0.00024221,2]
[365297019,1749585050451,-981.18565199,0.00024221,2]
[365297020,1749585050460,-1000.0,0.00024221,2]